bitfinex/quotes_ETHUSD_20220212
["timestamp","ask_amount","ask_price","bid_price","bid_amount"]
[1644690303761,1.4313081,2972.6,2972.4,0.01041122]
[1644690304608,1.4313081,2972.6,2971.9,0.77122842]
[1644690304810,1.4313081,2972.5,2972.4,0.01041122]
[1644690305010,1.4313081,2972.6,2972.4,0.01041122]
[1644690305812,1.4313081,2972.6,2971.9,0.77122842]
[1644690306011,1.4313081,2972.5,2971.9,0.77122842]
[1644690306212,0.01040983,2972.7,2972.4,0.01041122]
[1644690306414,1.43137344,2972.6,2972.4,0.01041122]
[1644690307012,1.43137344,2972.6,2971.9,1.61233842]
[1644690307212,0.1681,2973.0,2972.4,0.00982969]
[1644690307213,1.43137344,2972.5,2972.4,0.00982969]
[1644690307613,0.00982838,2972.7,2972.4,0.00982969]
[1644690307816,1.43130674,2972.6,2972.4,0.00982969]
[1644690308012,0.00982838,2972.7,2972.4,0.00982969]
[1644690308252,0.63538127,2973.3,2972.1,0.84104]
[1644690308454,0.00982838,2972.7,2972.4,0.00982969]
[1644690309055,1.43128938,2972.6,2972.4,0.00982969]
[1644690309254,0.00982838,2972.7,2972.4,0.00982969]
[1644690309456,0.77786237,2973.0,2972.0,0.1681]
[1644690309663,0.00385501,2972.7,2972.0,1.85022]
[1644690310669,0.1681,2973.2,2972.5,0.85636471]
[1644690310859,0.00385482,2972.7,2972.5,0.85636471]
[1644690311861,0.02081755,2973.5,2972.5,0.85636471]
[1644690312110,0.02081755,2973.5,2972.6,0.485]
[1644690312111,1.43101727,2973.4,2972.6,0.485]
[1644690312311,0.01014466,2972.7,2972.6,0.485]
[1644690313114,0.02081755,2973.5,2972.6,0.485]
[1644690313310,0.01014456,2972.8,2972.6,0.485]
[1644690313510,0.01014456,2972.8,2972.7,0.73094471]
[1644690313712,0.01014456,2972.8,2972.7,1.21594471]
[1644690313911,0.01014456,2972.8,2972.7,2.21594471]
[1644690314114,0.01014456,2972.8,2972.7,1.21594471]
[1644690314313,0.02081755,2973.5,2972.7,1.2102072]
[1644690314512,0.00417888,2972.9,2972.7,0.485]
[1644690315413,0.02081755,2973.5,2972.8,0.73528333]
[1644690315616,0.03632743,2973.5,2973.3,0.7414486]
[1644690315878,0.03632743,2973.5,2972.7,1.6814]
[1644690316679,0.02081755,2973.5,2972.7,1.6814]
[1644690316880,0.00984434,2973.2,2972.7,1.6814]
[1644690317083,0.00984434,2973.2,2972.9,0.70802149]
[1644690317780,0.02081755,2973.5,2972.9,0.70802149]
[1644690318182,0.00984444,2973.2,2972.9,0.70802149]
[1644690318981,0.02081755,2973.5,2972.9,0.70802149]
[1644690319382,0.0099435,2973.2,2972.9,0.70802149]
[1644690320316,3.51437311,2973.9,2972.9,0.70802149]
[1644690320519,0.0099435,2973.2,2972.9,1.73532149]
[1644690320719,0.0099435,2973.2,2973.0,0.1681]
[1644690321419,4.12402366,2974.1,2973.0,0.1681]
[1644690321618,0.0099434,2973.2,2973.0,0.1681]
[1644690321817,0.0099434,2973.2,2973.0,0.1381]
[1644690322719,3.27998392,2974.1,2973.0,0.1381]
[1644690322919,4.9292,2974.2,2973.0,0.1381]
[1644690322920,0.03936318,2973.7,2973.4,0.77044276]
[1644690323121,0.03936318,2973.7,2972.7,1.3158]
[1644690323361,0.03936318,2973.7,2972.7,0.1681]
[1644690323757,7.05042612,2974.2,2972.7,0.1681]
[1644690323955,1.59908084,2974.1,2972.7,0.1681]
[1644690324156,0.00984207,2973.3,2972.4,0.60324517]
[1644690324358,0.00984207,2973.3,2972.9,0.88140374]
[1644690324963,0.67022458,2973.8,2972.9,0.88140374]
[1644690325163,1.43099783,2973.7,2972.9,0.88140374]
[1644690325362,0.00984227,2973.2,2972.9,0.88140374]
[1644690326163,0.1681,2974.0,2972.9,0.88140374]
[1644690326362,1.43100854,2973.9,2972.9,0.88140374]
[1644690326564,0.00984917,2973.2,2972.9,0.88140374]
[1644690327403,0.1681,2973.8,2972.9,0.88140374]
[1644690327602,1.43102658,2973.7,2972.9,0.88140374]
[1644690327802,0.00984917,2973.2,2972.9,0.88140374]
[1644690328610,3.46931359,2973.9,2972.9,0.88140374]
[1644690328907,0.00984917,2973.2,2972.9,0.88140374]
[1644690329906,0.1681,2973.9,2972.9,0.88140374]
[1644690330107,0.00984917,2973.2,2972.9,0.88140374]
[1644690330963,0.90722294,2974.0,2972.9,0.88140374]
[1644690331165,4.68930883,2973.9,2972.9,0.88140374]
[1644690331482,0.00984871,2973.2,2972.9,0.88140374]
[1644690332162,0.1681,2973.8,2972.9,0.88140374]
[1644690332362,0.00984871,2973.2,2972.9,0.88140374]
[1644690332967,0.00984871,2973.2,2972.9,0.87997324]
[1644690333370,0.1681,2973.8,2972.9,0.87997324]
[1644690333566,1.43099703,2973.7,2972.9,0.87997324]
[1644690333770,0.00984871,2973.2,2972.9,0.87997324]
[1644690334601,3.29171984,2973.9,2972.9,0.87997324]
[1644690334800,0.00984873,2973.2,2972.9,0.87997324]
[1644690335908,3.73742192,2973.9,2972.9,0.87997324]
[1644690336109,0.00984214,2973.2,2972.6,0.1681]
[1644690336314,0.00984214,2973.2,2972.5,1.1663]
[1644690336708,0.00984214,2973.2,2972.4,0.00984475]
[1644690337109,3.6681,2973.6,2972.8,0.87890571]
[1644690337310,0.00984265,2972.9,2972.8,0.87890571]
[1644690337910,0.00984265,2972.9,2972.4,0.00984442]
[1644690338354,3.5,2973.4,2972.3,3.47789996]
[1644690338554,0.00984317,2972.8,2972.4,0.00984445]
[1644690339353,0.00984317,2972.8,2972.1,0.92678867]
[1644690339553,4.28677331,2973.4,2972.1,0.75868867]
[1644690339754,0.00984986,2972.7,2972.4,0.00985097]
[1644690340557,0.64429254,2973.0,2972.1,0.75868867]
[1644690340757,4.71233656,2972.9,2972.0,0.1681]
[1644690340963,4.71233656,2972.9,2972.4,0.00985094]
[1644690340964,0.00984979,2972.7,2972.4,0.00985094]
[1644690341160,1.43122724,2972.6,2972.4,0.00985094]
[1644690341760,1.43122724,2972.6,2971.6,0.25]
[1644690342022,1.43122724,2972.6,2971.4,0.1681]
[1644690343015,3.45771812,2972.5,2971.4,0.1681]
[1644690343216,1.43122724,2972.4,2971.4,0.1181]
[1644690343414,0.72655558,2972.2,2971.9,0.00984523]
[1644690344317,0.72655558,2972.2,2971.4,0.1181]
[1644690344516,0.72655558,2972.2,2971.9,0.00984513]
[1644690344716,0.1681,2972.4,2971.9,0.00984513]
[1644690344916,1.43142326,2972.3,2971.9,0.00984513]
[1644690345117,3.29868251,2972.2,2971.9,0.00984513]
[1644690345517,4.28249043,2972.5,2971.3,0.30629996]
[1644690345773,0.9628,2972.2,2971.9,0.00993967]
[1644690345976,5.42466626,2972.1,2971.9,0.00993967]
[1644690346176,4.31209476,2972.0,2971.9,0.00993967]
[1644690346577,4.31209476,2972.0,2971.1,0.00359136]
[1644690346980,3.31575981,2971.9,2971.8,0.00993988]
[1644690347177,0.1681,2971.9,2971.8,0.00993988]
[1644690347779,0.1681,2971.9,2971.1,0.00359136]
[1644690347977,0.1681,2972.2,2971.1,0.00359136]
[1644690348179,1.43151553,2972.1,2971.7,0.00994008]
[1644690348378,3.61339496,2972.0,2971.7,0.00994008]
[1644690348780,0.1681,2972.0,2971.7,0.00994008]
[1644690348979,0.1681,2972.1,2970.9,0.00359136]
[1644690349179,0.1681,2971.9,2971.1,0.63321164]
[1644690349379,0.76599182,2972.0,2971.7,0.00985672]
[1644690349609,0.1681,2971.9,2971.7,0.00985672]
[1644690350209,0.1681,2971.9,2971.2,0.00359136]
[1644690350610,0.1681,2971.9,2971.7,0.00985682]
[1644690350813,0.1681,2972.2,2971.7,0.00985682]
[1644690351014,1.43155521,2972.1,2971.7,0.00985682]
[1644690351316,0.1681,2972.0,2971.7,0.00985682]
[1644690351516,0.1681,2972.0,2971.2,0.00359136]
[1644690351517,0.1681,2972.1,2971.2,0.00359136]
[1644690351716,0.1681,2971.9,2971.8,0.00985662]
[1644690351914,0.75073554,2972.1,2971.8,0.00985662]
[1644690351915,0.1681,2972.0,2971.8,0.00985662]
[1644690352714,0.1681,2972.2,2971.2,0.00359136]
[1644690352915,0.1681,2972.2,2971.8,0.00986048]
[1644690353567,0.99995981,2972.2,2971.8,0.00986048]
[1644690353968,1.43157423,2972.1,2971.2,0.00359136]
[1644690354171,0.83185981,2972.2,2971.9,0.00986028]
[1644690355069,0.83185981,2972.2,2971.2,0.00359136]
[1644690355269,4.4308,2972.3,2971.9,0.00986018]
[1644690356075,3.9458,2972.3,2971.9,0.00986018]
[1644690356277,3.7777,2972.3,2971.7,0.8736512]
[1644690356474,0.1681,2972.5,2971.7,0.8736512]
[1644690356676,0.1681,2972.5,2972.0,0.00985997]
[1644690357513,0.1681,2972.5,2971.3,0.00359136]
[1644690357714,0.1681,2972.5,2972.1,0.00985967]
[1644690358117,1.43148679,2972.4,2972.1,0.00985967]
[1644690358319,0.01971933,2972.0,2971.1,0.00359136]
[1644690359216,0.01971933,2972.0,2970.9,0.00359136]
[1644690359517,0.83589657,2971.6,2970.9,0.00359136]
[1644690361361,0.01971933,2972.0,2970.9,0.00359136]
[1644690361559,0.1681,2971.9,2970.9,0.00359136]
[1644690362566,0.64121734,2971.7,2971.3,0.01040202]
[1644690363662,0.64121734,2971.7,2971.4,0.01040182]
[1644690364528,0.6531,2971.6,2971.4,0.01040182]
[1644690364718,0.6531,2971.6,2970.9,0.00359136]
[1644690364918,0.6531,2971.6,2971.4,0.01040172]
[1644690365720,5.0,2971.5,2971.4,1.72e-06]
[1644690365920,6.60011737,2971.5,2970.2,0.00359136]
[1644690366119,1.60011737,2971.4,2970.2,0.00359136]
[1644690366318,1.43201737,2971.3,2970.2,0.00359136]
[1644690366520,0.78518459,2970.8,2970.2,0.00359136]
[1644690366720,0.78518459,2970.8,2970.0,0.00359136]
[1644690366921,0.1683,2970.7,2970.0,0.00359136]
[1644690367323,0.1683,2970.7,2970.3,0.00595339]
[1644690368123,0.78518459,2970.8,2970.3,0.00595339]
[1644690368356,0.78518459,2970.8,2969.7,0.00359136]
[1644690368558,0.1683,2970.7,2970.4,0.00595319]
[1644690369560,0.1683,2970.7,2969.7,0.00359136]
[1644690369761,0.1683,2970.7,2970.4,0.01039754]
[1644690370162,0.1683,2970.7,2970.4,0.03680651]
[1644690370762,0.1683,2970.7,2970.4,0.02640897]
[1644690370961,0.1683,2970.7,2970.4,0.03680651]
[1644690372017,0.52092447,2970.8,2970.4,0.02640897]
[1644690372207,0.52092447,2970.8,2970.4,0.03680651]
[1644690373213,0.52092447,2970.8,2970.4,0.02640897]
[1644690373413,0.52092447,2970.8,2970.5,0.01039744]
[1644690374511,0.52092447,2970.8,2970.4,0.02640897]
[1644690374712,0.68922447,2970.8,2970.5,0.01039734]
[1644690375518,0.68922447,2970.8,2970.4,0.02640897]
[1644690375756,0.68922447,2970.8,2970.6,0.0263293]
[1644690376961,0.68922447,2970.8,2970.6,0.03672654]
[1644690377861,0.68922447,2970.8,2970.6,0.0263293]
[1644690378260,7.05,2970.7,2970.6,0.01039724]
[1644690378461,0.06859065,2970.2,2970.1,0.0415952]
[1644690379060,0.06859065,2970.2,2969.6,0.00359136]
[1644690380706,3.36465184,2970.2,2969.6,0.00359136]
[1644690380911,3.36865184,2970.2,2969.6,0.00359136]
[1644690381310,0.87719742,2969.8,2969.6,0.00359136]
[1644690381509,0.87719742,2969.8,2968.7,0.25]
[1644690381709,0.87719742,2969.8,2968.8,0.00359136]
[1644690381908,0.87719742,2969.8,2968.5,4.3723]
[1644690381909,0.87719742,2969.8,2968.6,0.00359136]
[1644690382314,0.87719742,2969.8,2968.8,0.6378856]
[1644690382510,0.87719742,2969.8,2968.9,0.00359136]
[1644690382911,0.87719742,2969.8,2969.2,0.01040004]
[1644690383362,3.34385139,2969.7,2969.2,0.01040004]
[1644690383558,1.38925331,2969.8,2969.2,0.01040004]
[1644690383757,1.55755331,2969.8,2969.2,0.01040004]
[1644690383957,1.55755331,2969.8,2968.6,0.00359136]
[1644690384158,1.55755331,2969.8,2969.4,0.01039964]
[1644690384159,1.38925331,2969.8,2969.4,0.01039964]
[1644690384863,1.38925331,2969.8,2969.4,9.964e-05]
[1644690384864,5.0,2969.6,2969.4,9.964e-05]
[1644690385062,4.1533,2969.5,2969.4,9.964e-05]
[1644690385263,4.1533,2969.5,2968.3,0.00359136]
[1644690385264,0.6533,2969.5,2968.3,0.00359136]
[1644690385465,0.78134412,2969.2,2968.3,0.71525192]
[1644690386166,0.6533,2969.5,2968.3,0.71525192]
[1644690387020,0.485,2969.5,2968.3,0.71525192]
[1644690387215,0.004,2969.7,2968.8,0.792228]
[1644690387415,0.004,2969.7,2968.9,0.00359136]
[1644690387614,0.004,2969.7,2969.0,0.485]
[1644690388014,0.004,2969.7,2969.0,6.55]
[1644690388214,0.004,2969.7,2969.0,0.485]
[1644690388414,0.004,2969.7,2969.1,4.3419]
[1644690388618,0.004,2969.7,2969.2,2.30673997]
[1644690388814,0.004,2969.7,2969.2,3.60673997]
[1644690389013,0.004,2969.7,2969.3,0.01039984]
[1644690389313,0.004,2969.7,2969.4,1.14495034]
[1644690389515,0.07898732,2970.2,2969.4,1.14495034]
[1644690389516,0.07898732,2970.2,2969.7,19.71]
[1644690389714,0.07898732,2970.2,2969.7,22.27517]
[1644690389913,0.07898732,2970.2,2969.8,7.55]
[1644690390115,0.06859065,2970.2,2969.8,6.55]
[1644690390313,0.07898814,2970.2,2969.9,0.86371607]
[1644690390514,0.07898814,2970.2,2970.0,0.485]
[1644690391168,0.06859065,2970.2,2970.0,0.485]
[1644690391367,0.07898805,2970.2,2970.0,0.485]
[1644690391965,0.07898805,2970.2,2970.0,0.48033647]
[1644690392367,0.06859065,2970.2,2970.0,0.48033647]
[1644690392567,0.06859065,2970.2,2970.0,0.43033647]
[1644690392768,0.07898805,2970.2,2970.0,0.43033647]
[1644690393568,0.06859065,2970.2,2970.0,0.43033647]
[1644690393773,0.07898805,2970.2,2970.0,0.43033647]
[1644690394722,0.06859065,2970.2,2970.0,0.43033647]
[1644690394921,0.1683,2971.3,2970.1,10.69074669]
[1644690395121,0.0103974,2970.2,2970.1,5.83258805]
[1644690395421,0.0103974,2970.2,2970.1,2.10945985]
[1644690395822,0.0103974,2970.2,2970.1,2.59445985]
[1644690396020,0.88306086,2971.5,2970.1,1.24783985]
[1644690396021,0.1683,2971.5,2970.1,1.24783985]
[1644690396221,0.0103973,2970.3,2970.2,0.00357736]
[1644690396424,0.0103973,2970.3,2970.1,1.24783985]
[1644690397021,0.0103973,2970.3,2970.1,1.92118985]
[1644690397221,0.1683,2971.5,2970.1,1.92118985]
[1644690397423,0.0103972,2970.3,2970.2,3.90142602]
[1644690397722,0.0103972,2970.3,2970.2,0.1683]
[1644690398354,4.1843599,2971.6,2970.2,0.1683]
[1644690398560,0.0103971,2970.4,2970.3,0.00357721]
[1644690398757,0.0103971,2970.4,2970.3,0.485]
[1644690398960,0.1681,2971.5,2970.4,7.05]
[1644690399158,0.1681,2971.5,2970.8,1.34614]
[1644690399457,0.1681,2971.5,2970.9,0.485]
[1644690400261,0.1681,2971.5,2970.8,1.34614]
[1644690400461,0.1681,2971.9,2970.8,1.34614]
[1644690400662,1.43191018,2971.8,2970.8,1.34614]
[1644690400861,0.1681,2971.7,2971.0,0.81509813]
[1644690401062,1.43191018,2971.6,2971.0,0.81509813]
[1644690401466,1.43191018,2971.8,2971.0,0.81509813]
[1644690402307,0.00446732,2971.5,2970.8,1.34614]
[1644690402513,0.00446732,2971.5,2970.5,3.4864]
[1644690402514,1.43191018,2971.4,2970.5,3.4864]
[1644690402812,1.43191018,2971.4,2970.5,0.1681]
[1644690403013,1.43191018,2971.4,2970.4,0.1681]
[1644690403211,1.43191018,2971.4,2970.3,8.15685721]
[1644690403212,1.60021018,2971.4,2970.3,7.48357721]
[1644690403413,0.0103957,2971.1,2970.6,0.75957109]
[1644690404015,0.0103957,2971.1,2970.3,7.48357721]
[1644690404415,1.43206145,2971.0,2970.3,7.48357721]
[1644690404612,0.0103962,2970.8,2970.3,7.48357721]
[1644690405213,0.0103962,2970.8,2970.3,7.47780564]
[1644690405613,0.1683,2971.2,2970.3,0.00357721]
[1644690405867,0.0103965,2970.7,2970.3,0.00357721]
[1644690406067,0.0103965,2970.7,2970.1,0.84424996]
[1644690406865,0.1683,2971.2,2970.1,0.84424996]
[1644690407065,0.0103968,2970.5,2970.2,0.00357721]
[1644690407266,0.0103968,2970.5,2970.1,0.84424996]
[1644690408070,0.1683,2971.2,2970.1,0.84424996]
[1644690408269,0.00445938,2970.5,2970.1,0.84424996]
[1644690408470,0.00445938,2970.5,2970.2,0.00357721]
[1644690408671,0.00445938,2970.5,2970.1,0.84424996]
[1644690409072,0.00445938,2970.5,2970.0,0.1683]
[1644690409275,0.1683,2971.0,2969.7,0.00357721]
[1644690409519,0.1683,2971.0,2969.5,0.00357721]
[1644690409520,0.00445938,2970.5,2969.5,0.00357721]
[1644690409710,0.00445938,2970.5,2969.7,0.00357721]
[1644690409911,0.00445938,2970.5,2969.5,0.00357721]
[1644690410311,0.1683,2971.0,2969.5,0.00357721]
[1644690410510,1.43211496,2970.9,2969.5,0.00357721]
[1644690410712,0.00445893,2970.5,2969.5,3.03044]
[1644690411115,0.00445893,2970.5,2969.6,3.78414786]
[1644690411314,0.00445893,2970.5,2970.3,0.72826466]
[1644690411515,1.1343,2971.3,2970.3,0.72826466]
[1644690411715,0.1683,2971.4,2970.3,0.72826466]
[1644690411716,1.4320458,2971.2,2970.3,0.72826466]
[1644690411919,0.0103901,2970.5,2970.3,0.72826466]
[1644690412720,0.1683,2971.5,2970.3,0.72826466]
[1644690412923,1.43201663,2971.4,2970.3,0.72826466]
[1644690413122,0.01039062,2970.5,2970.3,1.56604693]
[1644690413967,0.82156708,2971.3,2970.3,1.56604693]
[1644690414165,1.60026445,2971.2,2970.3,1.56604693]
[1644690414365,0.01039062,2970.5,2970.3,1.56604693]
[1644690414765,0.01039062,2970.5,2970.3,0.72826466]
[1644690415166,0.1683,2971.2,2970.3,0.72826466]
[1644690415364,0.01039062,2970.5,2970.3,0.72826466]
[1644690416368,0.1683,2971.2,2970.3,0.72826466]
[1644690416566,0.01039062,2970.5,2970.4,0.1683]
[1644690416766,0.01039062,2970.5,2970.3,0.1683]
[1644690417613,0.81798361,2971.5,2970.3,0.1683]
[1644690417813,0.01039062,2970.5,2970.3,0.1683]
[1644690418014,0.01039062,2970.5,2970.4,0.81514723]
[1644690418816,0.81798361,2971.5,2970.4,0.81514723]
[1644690419017,0.01039052,2970.6,2970.4,0.81514723]
[1644690419216,0.01039052,2970.6,2970.3,0.1683]
[1644690419617,0.01039052,2970.6,2970.2,0.1683]
[1644690419921,0.01039052,2970.6,2969.7,7.9421]
[1644690420118,0.1683,2971.4,2969.7,7.7738]
[1644690420318,0.01039062,2970.5,2969.8,0.74195852]
[1644690421164,0.1683,2970.6,2969.8,0.73156513]
[1644690421365,0.8344044,2970.7,2969.8,0.73156513]
[1644690421560,0.8344044,2970.7,2969.8,0.74195815]
[1644690421561,0.01039025,2970.5,2969.8,0.74195815]
[1644690422361,0.1683,2971.1,2969.8,0.73156513]
[1644690422564,1.43210674,2971.0,2969.8,0.73156513]
[1644690422762,0.01039025,2970.5,2969.8,0.74195815]
[1644690422961,0.01039025,2970.5,2969.8,0.01039302]
[1644690423562,0.1683,2970.9,2969.5,1.1639]
[1644690423762,1.43213421,2970.8,2969.5,1.1639]
[1644690423964,1.1344,2971.2,2969.8,0.01039302]
[1644690423965,0.84701722,2970.5,2969.8,0.01039302]
[1644690424807,0.83662697,2970.5,2969.6,0.63154333]
[1644690425007,0.84701722,2970.5,2969.8,0.01039302]
[1644690426009,0.1683,2970.4,2969.4,0.80044323]
[1644690426210,0.1683,2970.4,2969.8,0.01039302]
[1644690427214,0.1683,2970.4,2969.4,0.00356521]
[1644690427414,0.1683,2970.4,2969.8,0.01039294]
[1644690427816,0.1683,2970.4,2969.3,7.73]
[1644690427817,7.05,2969.9,2969.3,6.19440622]
[1644690428019,7.05,2969.9,2968.9,7.48]
[1644690428277,1.6008022,2969.8,2968.9,7.48]
[1644690428474,1.4325667,2969.7,2968.9,7.43]
[1644690428676,0.1683,2969.6,2968.9,7.43]
[1644690428879,0.1683,2969.6,2968.3,0.25]
[1644690428880,0.87878833,2968.9,2968.3,7.73]
[1644690429083,0.87878833,2968.9,2968.3,7.48]
[1644690429280,3.5,2969.6,2968.3,7.48]
[1644690429481,0.1683,2969.5,2968.3,7.48]
[1644690429682,10.373,2969.7,2968.3,7.48]
[1644690429882,10.373,2969.7,2968.4,0.485]
[1644690430385,10.373,2969.7,2968.9,0.7770715]
[1644690430584,1.2075,2969.8,2968.9,0.7770715]
[1644690430794,0.1683,2970.1,2969.1,0.84193]
[1644690430983,7.9096,2970.2,2969.1,0.84193]
[1644690431185,3.6683,2970.3,2969.2,0.49090285]
[1644690431482,0.1683,2970.3,2969.2,0.49090285]
[1644690431683,2.09934066,2970.2,2969.4,0.73900035]
[1644690431882,1.43240265,2970.1,2969.4,0.73900035]
[1644690432312,0.00450504,2969.9,2969.4,0.73900035]
[1644690432611,0.00450504,2969.9,2969.2,0.485]
[1644690433208,0.1683,2970.1,2969.2,0.485]
[1644690433409,1.43246778,2970.0,2969.2,0.485]
[1644690433610,0.00450504,2969.7,2969.2,0.485]
[1644690434415,0.1683,2969.9,2969.2,0.485]
[1644690434714,0.00450497,2969.6,2969.4,0.63090323]
[1644690435118,0.00450497,2969.6,2969.2,0.485]
[1644690435761,0.1683,2970.1,2969.2,0.485]
[1644690435967,0.01036778,2969.6,2969.3,0.71014359]
[1644690436965,0.1683,2970.1,2969.3,0.69977442]
[1644690437167,0.01036786,2969.6,2969.3,0.71014349]
[1644690437767,0.01036786,2969.6,2969.3,0.01036907]
[1644690438171,0.1683,2970.1,2969.1,1.34696]
[1644690438369,0.01036786,2969.6,2969.3,0.01036907]
[1644690439268,0.1683,2970.1,2969.1,1.34696]
[1644690439505,0.01036786,2969.6,2969.3,0.79444616]
[1644690439808,0.01036786,2969.6,2969.3,0.01036907]
[1644690440408,0.1683,2970.1,2968.9,7.48]
[1644690440605,0.1683,2970.1,2968.9,7.965]
[1644690440816,0.01036786,2969.6,2969.3,0.01036907]
[1644690441616,0.1683,2970.1,2968.9,0.485]
[1644690441815,1.43254571,2970.0,2968.9,0.485]
[1644690442016,0.01036786,2969.6,2969.3,0.01036907]
[1644690442616,0.01036786,2969.6,2969.3,0.65258272]
[1644690442816,0.1683,2970.1,2969.3,0.64221365]
[1644690443257,0.01036786,2969.6,2969.3,0.65258272]
[1644690444062,0.1683,2970.1,2969.3,0.64221365]
[1644690444261,0.0103744,2969.6,2969.3,0.01037562]
[1644690445262,0.1683,2970.1,2968.6,1.91413439]
[1644690445263,0.81808901,2969.5,2968.6,1.91413439]
[1644690445563,0.81808901,2969.5,2969.3,0.01037562]
[1644690446567,0.81808901,2969.5,2968.2,0.84329767]
[1644690446770,0.1683,2969.4,2969.3,0.01037571]
[1644690447620,0.03112712,2969.2,2968.0,0.72874723]
[1644690447820,0.83754893,2969.0,2968.0,0.72874723]
[1644690448020,0.83754893,2969.0,2968.6,0.04151153]
[1644690448919,0.83754893,2969.0,2967.6,0.25]
[1644690449120,0.83754893,2969.0,2967.6,0.15]
[1644690449121,0.1683,2968.9,2967.6,0.15]
[1644690450124,0.1683,2968.9,2967.9,0.85431985]
[1644690450321,0.83754893,2969.0,2967.9,0.85431985]
[1644690450522,0.83754893,2969.0,2967.9,0.80431985]
[1644690450781,0.83754893,2969.0,2967.6,0.15]
[1644690451379,4.9100646,2969.0,2967.6,0.15]
[1644690451580,0.1683,2968.9,2968.2,0.01037134]
[1644690452485,1.43316058,2968.8,2967.6,0.15]
[1644690452680,0.1683,2968.7,2967.5,0.27639993]
[1644690452889,0.1683,2968.7,2968.4,0.01037085]
[1644690453085,1.1856,2968.9,2968.4,0.01037085]
[1644690453086,0.1683,2968.8,2968.4,0.01037085]
[1644690453698,0.1683,2968.8,2968.0,0.75965957]
[1644690453887,1.1856,2968.9,2968.0,0.75965957]
[1644690454088,1.1856,2968.9,2968.5,0.01037075]
[1644690454288,0.83754893,2969.0,2968.5,0.01037075]
[1644690454918,0.83754893,2969.0,2968.0,0.75965957]
[1644690455117,0.83754893,2969.0,2968.6,0.01037045]
[1644690456118,0.83754893,2969.0,2968.1,7.48]
[1644690456321,0.1683,2968.9,2968.7,0.01037036]
[1644690456517,0.83754893,2969.0,2968.7,0.01037036]
[1644690456919,6.07172712,2969.2,2968.7,0.01037036]
[1644690457120,1.43302963,2969.1,2968.7,0.01037036]
[1644690457319,0.1683,2969.0,2968.1,7.48]
[1644690457520,0.1683,2969.0,2968.8,0.01037006]
[1644690457718,6.07172712,2969.2,2968.8,0.01037006]
[1644690457719,0.1683,2969.1,2968.8,0.01037006]
[1644690458367,0.79746814,2968.9,2968.8,0.01037006]
[1644690458568,0.79746814,2968.9,2968.1,7.48]
[1644690458769,0.79746814,2968.9,2968.8,0.01037006]
[1644690459269,2.23057021,2968.9,2968.8,0.01037006]
[1644690459669,2.23057021,2968.9,2968.2,0.00354121]
[1644690459869,0.1683,2968.8,2968.7,0.01037026]
[1644690460968,0.1683,2968.8,2968.2,0.00354121]
[1644690461169,0.1683,2968.8,2968.6,0.01037045]
[1644690462022,0.1683,2968.8,2968.2,0.00354121]
[1644690462428,0.1683,2968.8,2968.6,0.01037055]
[1644690463228,0.1683,2968.8,2968.2,0.00354121]
[1644690463429,0.1683,2968.8,2968.1,7.48]
[1644690463630,0.79746814,2968.9,2968.6,0.01037055]
[1644690464034,2.45,2968.8,2968.1,7.1354002]
[1644690464342,2.45,2968.8,2968.1,0.04148844]
[1644690464533,0.1683,2969.1,2967.9,0.82145552]
[1644690464534,0.1683,2969.1,2967.9,0.77145552]
[1644690464732,6.07172712,2969.2,2968.0,3.63543478]
[1644690464733,6.24002712,2969.2,2968.0,3.63543478]
[1644690464934,6.07172712,2969.2,2967.9,0.77145552]
[1644690465532,6.07172712,2969.2,2968.4,0.80355622]
[1644690465767,0.03112712,2969.2,2968.4,0.80355622]
[1644690467075,0.03112712,2969.2,2968.5,0.0058718]
[1644690468076,0.03112712,2969.2,2968.4,0.80355622]
[1644690468277,0.04149564,2969.2,2968.5,0.01037113]
[1644690469279,0.03112712,2969.2,2968.4,0.80355622]
[1644690469532,0.04149564,2969.2,2968.5,0.01037113]
[1644690469729,0.04149564,2969.2,2968.9,0.84604386]
[1644690470531,0.03112712,2969.2,2968.9,0.84604386]
[1644690470731,0.04149595,2969.2,2968.9,0.84604386]
[1644690471832,0.04149595,2969.2,2968.9,1.68805386]
[1644690472832,0.03112712,2969.2,2968.9,1.68805386]
[1644690473259,0.04149595,2969.2,2968.9,1.68805386]
[1644690474071,6.369,2969.9,2969.0,6.25]
[1644690474368,0.64074407,2970.3,2969.2,7.05]
[1644690474369,0.1683,2970.3,2969.2,7.05]
[1644690474570,1.43253222,2970.2,2969.3,4.34158]
[1644690474767,1.43253222,2970.1,2969.3,6.12658]
[1644690474968,1.02262543,2971.1,2969.3,2.9964]
[1644690474969,3.5,2970.7,2969.3,2.9964]
[1644690475170,1.43237455,2970.6,2969.3,1.6964]
[1644690475469,4.93237455,2970.5,2969.3,1.6964]
[1644690475669,1.43237455,2970.4,2969.3,1.6964]
[1644690475870,0.1683,2970.3,2969.3,1.6964]
[1644690476070,1.43237455,2970.2,2969.5,0.87132459]
[1644690476270,1.43237455,2970.2,2969.1,3.68327]
[1644690476571,3.5,2970.1,2968.9,1.1739]
[1644690476770,1.4368752,2970.0,2968.9,1.1739]
[1644690477041,1.43237455,2969.9,2968.9,1.1739]
[1644690477246,0.81355426,2969.8,2969.0,0.67466507]
[1644690477445,1.43237455,2969.7,2969.0,0.67466507]
[1644690478144,0.00450065,2969.5,2969.0,0.67466507]
[1644690478743,0.00450065,2969.5,2969.0,1.34824507]
[1644690478943,0.66805127,2970.2,2968.8,5.18754]
[1644690479144,0.01037058,2969.4,2968.8,4.35587284]
[1644690479546,0.01037058,2969.4,2968.6,0.25]
[1644690479547,7.23282099,2969.3,2968.7,0.00353587]
[1644690479754,1.43285005,2969.2,2968.7,0.00353587]
[1644690479946,1.43285005,2969.2,2968.5,0.00353587]
[1644690479947,0.0106076,2968.6,2968.5,0.00353587]
[1644690480147,1.56733127,2968.6,2967.9,0.00353587]
[1644690480545,1.56733127,2968.6,2967.7,0.00353587]
[1644690481372,0.7158076,2968.6,2967.7,0.00353587]
[1644690481575,0.0106076,2968.6,2967.7,0.00353587]
[1644690482974,0.0106076,2968.6,2968.2,0.74584506]
[1644690483174,0.0106076,2968.6,2967.9,0.00353587]
[1644690483977,0.0106076,2968.6,2968.1,0.01038137]
[1644690485019,0.0106076,2968.6,2968.0,0.81461276]
[1644690485215,0.0106076,2968.6,2968.2,0.01038118]
[1644690486221,0.0106076,2968.6,2968.1,0.00353587]
[1644690486419,0.0106076,2968.6,2968.3,0.00977784]
[1644690487228,1.43319789,2968.5,2968.3,0.00977784]
[1644690487422,1.43319789,2968.5,2967.9,0.02145499]